bitfinex/quotes_ETHUSD_20250611
["timestamp","ask_amount","ask_price","bid_price","bid_amount"]
[1749677917553,1.36711217,2786.5,2786.3,0.55]
[1749677917761,0.820263,2786.4,2786.3,0.55]
[1749677918055,1.84559071,2786.4,2785.9,0.55]
[1749677918260,1.02532771,2786.2,2785.9,0.55]
[1749677918417,0.820263,2786.1,2785.9,0.55]
[1749677918618,1.02532771,2786.4,2786.1,0.1792]
[1749677918861,0.82143642,2786.3,2786.1,0.1792]
[1749677919067,0.82143642,2786.2,2786.1,0.55]
[1749677919517,1.84676413,2786.2,2786.1,0.7292]
[1749677919713,0.82143642,2786.2,2786.1,0.7292]
[1749677920866,2.70027152,2787.2,2786.1,0.7292]
[1749677920867,1.6267262,2787.0,2786.1,11.02882406]
[1749677921063,2.70027152,2787.9,2786.1,11.02882406]
[1749677921893,2.70027152,2787.8,2786.3,0.84960255]
[1749677922034,2.97029867,2787.8,2786.5,0.55]
[1749677922346,2.70027152,2787.7,2786.5,0.55]
[1749677923360,4.72547517,2788.5,2786.5,12.65302346]
[1749677923361,2.70027152,2787.6,2786.5,12.65302346]
[1749677923559,2.70027152,2787.7,2786.7,0.55]
[1749677923743,2.70027152,2787.9,2786.7,0.55]
[1749677924587,2.70027152,2788.0,2786.7,0.55]
[1749677924742,2.70027152,2788.1,2786.7,0.55]
[1749677924947,2.70027152,2788.1,2786.9,0.55]
[1749677925362,2.70027152,2788.4,2786.9,0.84953805]
[1749677925665,2.70027152,2788.6,2787.1,0.55]
[1749677926072,2.70027152,2788.6,2787.1,0.84951656]
[1749677926271,3.55354867,2788.6,2787.1,10.84951656]
[1749677926450,3.51877152,2788.7,2787.1,10.84951656]
[1749677926649,2.70027152,2788.8,2787.1,10.84951656]
[1749677927503,2.70027152,2788.8,2787.3,0.55]
[1749677927810,2.70027152,2789.1,2787.5,0.55]
[1749677927986,4.989,2789.1,2787.5,0.55]
[1749677928370,4.989,2789.1,2787.5,0.84947358]
[1749677929173,3.58564491,2788.9,2787.7,0.55]
[1749677929375,4.989,2789.1,2787.7,0.55]
[1749677929611,2.70027152,2788.9,2787.6,0.29946283]
[1749677929811,6.28610451,2788.8,2787.6,0.29946283]
[1749677929996,3.58583299,2788.8,2787.7,0.55]
[1749677930203,6.28616089,2788.8,2787.7,0.55]
[1749677930400,6.28615654,2788.8,2787.7,0.55]
[1749677930606,3.58616105,2788.5,2787.7,0.55]
[1749677930791,4.51985351,2788.4,2787.9,0.1792]
[1749677930978,0.9335,2788.4,2787.9,0.1792]
[1749677931316,10.18276115,2788.3,2787.9,0.1792]
[1749677931476,3.76620005,2787.9,2787.2,0.1792]
[1749677931674,0.1792,2787.7,2787.2,0.1792]
[1749677932484,4.952,2787.7,2786.4,10.0]
[1749677932690,0.64664716,2787.8,2787.5,0.1792]
[1749677932892,0.82849403,2787.7,2787.5,0.1792]
[1749677933118,0.1792,2788.0,2787.5,0.1792]
[1749677933119,0.82849403,2787.6,2787.5,0.1792]
[1749677934709,0.82849403,2787.6,2787.5,0.7292]
[1749677935724,0.82849403,2787.6,2787.5,0.55]
[1749677937978,4.9,2788.6,2787.5,0.55]
[1749677938127,0.83341494,2788.5,2787.3,0.55]
[1749677938321,0.83341494,2788.4,2788.0,10.18276115]
[1749677938564,0.83341494,2788.3,2788.1,11.56827611]
[1749677938723,2.70027152,2789.5,2788.1,11.56827611]
[1749677938931,0.83425938,2789.4,2788.1,16.46427611]
[1749677939144,0.83425938,2789.3,2788.1,16.46427611]
[1749677939351,0.83425938,2789.2,2788.3,0.55]
[1749677939539,0.83425938,2789.1,2788.3,0.55]
[1749677939859,0.83425938,2789.0,2788.3,0.55]
[1749677940051,0.83425938,2788.9,2788.3,0.55]
[1749677940269,0.83425938,2788.8,2788.3,0.55]
[1749677940441,2.70027152,2789.6,2788.3,0.55]
[1749677940442,0.83425938,2788.7,2788.3,0.55]
[1749677940639,0.83425938,2788.6,2788.5,0.55]
[1749677940940,0.83425938,2788.6,2788.5,5.22]
[1749677941850,2.08842001,2789.3,2788.5,15.22]
[1749677942024,2.70027152,2790.1,2789.4,0.55]
[1749677942220,0.27002715,2790.1,2789.4,0.55]
[1749677942426,0.27002715,2790.1,2788.3,11.20103726]
[1749677942427,0.7516,2790.0,2788.4,10.55]
[1749677942647,0.7516,2790.0,2788.5,0.55]
[1749677944885,0.7516,2790.0,2789.7,0.1792]
[1749677945459,4.33586659,2790.0,2789.7,0.1792]
[1749677945665,0.9308,2790.0,2789.5,0.1792]
[1749677945891,0.45149539,2789.9,2789.5,0.1792]
[1749677946254,4.5150733,2790.0,2789.5,0.1792]
[1749677946452,0.1792,2789.8,2789.3,0.1792]
[1749677946791,3.58474333,2789.6,2789.3,0.1792]
[1749677947086,0.8792,2789.8,2789.3,0.1792]
[1749677947087,3.58487225,2789.5,2789.3,0.1792]
[1749677947247,0.35848723,2789.4,2789.3,0.1792]
[1749677947448,0.35848723,2789.4,2788.2,10.35703404]
[1749677947670,0.35848723,2789.4,2789.1,0.1792]
[1749677948122,3.94349049,2789.4,2789.1,0.1792]
[1749677950614,3.94352501,2789.4,2789.1,0.1792]
[1749677950769,0.8769525,2789.3,2789.1,0.1792]
[1749677951116,0.35848723,2789.4,2789.1,0.1792]
[1749677951610,0.1792,2789.6,2789.1,0.1792]
[1749677952895,0.1792,2789.6,2788.8,0.55]
[1749677952896,1.3962419,2790.4,2789.6,0.55]
[1749677953093,2.2073419,2790.9,2789.6,0.55]
[1749677953322,0.65836134,2790.8,2789.6,0.55]
[1749677953502,5.44236134,2790.8,2789.6,0.55]
[1749677953705,0.65836134,2790.8,2789.6,0.55]
[1749677953932,4.782,2790.8,2789.6,0.55]
[1749677954132,5.5871,2790.9,2789.6,0.55]
[1749677954691,5.5871,2790.9,2789.4,10.18276115]
[1749677954692,5.5871,2790.9,2789.1,0.55]
[1749677954889,5.5871,2790.9,2789.6,0.55]
[1749677955126,0.8111,2790.9,2789.6,0.55]
[1749677955322,0.8111,2790.9,2789.0,1.676]
[1749677955323,0.8111,2790.9,2790.0,10.0]
[1749677955538,0.8111,2790.9,2789.8,0.55]
[1749677956342,4.765,2791.0,2789.8,0.55]
[1749677956636,4.765,2791.1,2789.8,0.55]
[1749677957137,0.786,2791.4,2790.1,0.55]
[1749677957344,1.0,2791.5,2790.2,10.0]
[1749677957549,1.0,2791.5,2790.7,0.55]
[1749677957994,1.0,2791.5,2791.4,10.18276115]
[1749677958199,1.0,2791.5,2791.4,10.73276115]
[1749677958425,3.37533941,2792.9,2791.4,10.73276115]
[1749677958629,0.27002715,2792.5,2791.5,0.55]
[1749677958942,0.27002715,2792.5,2791.2,1.675]
[1749677958943,0.27002715,2792.5,2791.2,0.55]
[1749677959093,4.744,2792.8,2791.2,0.55]
[1749677959294,5.58042302,2792.8,2791.2,0.55]
[1749677959491,4.4071984,2793.0,2791.8,10.18276115]
[1749677959492,0.8267,2793.0,2791.8,10.18276115]
[1749677959690,0.8267,2793.0,2791.9,0.55]
[1749677960241,0.8267,2793.0,2791.9,10.55]
[1749677960451,0.8298,2793.4,2792.1,0.55]
[1749677960745,1.39411961,2793.5,2792.5,0.55]
[1749677961097,1.39411961,2793.5,2792.1,0.55]
[1749677961332,1.39411961,2793.5,2792.3,10.55]
[1749677961699,4.4090381,2793.9,2792.3,10.55]
[1749677961893,1.27311444,2793.8,2792.6,0.55]
[1749677962141,1.27311444,2793.8,2792.6,10.55]
[1749677962305,1.66637438,2793.9,2792.6,10.55]
[1749677962514,1.39411961,2794.1,2792.6,10.55]
[1749677962708,1.39411961,2794.1,2792.4,15.283]
[1749677963013,3.57949615,2793.7,2793.5,0.1784]
[1749677963213,0.35794962,2793.6,2793.5,0.1784]
[1749677963435,3.75754947,2794.0,2793.5,0.1784]
[1749677963637,3.57884188,2794.2,2792.4,10.55]
[1749677963965,3.57995558,2793.4,2793.1,0.1784]
[1749677964112,0.7518,2793.5,2792.3,0.55]
[1749677964302,0.7518,2793.5,2792.9,0.1784]
[1749677964303,0.1784,2793.4,2792.9,0.1784]
[1749677964499,0.1784,2793.4,2791.9,10.0]
[1749677964500,4.33163074,2793.5,2791.9,0.35849218]
[1749677964726,3.5804963,2793.0,2792.6,0.1784]
[1749677965035,3.75866347,2793.1,2792.6,0.1784]
[1749677965210,0.90626307,2793.4,2792.4,0.55]
[1749677965410,0.7518,2794.0,2793.1,0.55]
[1749677965634,0.7518,2794.0,2793.3,0.1784]
[1749677965941,0.7518,2794.0,2793.6,0.1784]
[1749677967231,3.57932794,2793.9,2793.6,0.1784]
[1749677967611,4.33093994,2794.0,2792.8,10.55]
[1749677967841,0.79099257,2793.9,2792.8,10.55]
[1749677968207,4.704,2794.5,2792.8,10.55]
[1749677968406,4.704,2794.4,2792.8,10.55]
[1749677968831,3.57881435,2794.3,2792.8,10.55]
[1749677969035,8.28263885,2794.4,2792.8,10.55]
[1749677969233,0.82826388,2794.3,2792.9,0.55]
[1749677969849,8.27248069,2794.5,2792.9,0.55]
[1749677970152,4.694,2794.5,2792.9,0.55]
[1749677970453,0.7518,2794.6,2792.9,0.55]
[1749677970626,0.7518,2794.6,2793.2,10.55]
[1749677971913,0.7604,2795.0,2793.2,10.55]
[1749677972344,0.7604,2795.0,2793.6,10.55]
[1749677973168,3.57807356,2794.8,2793.3,0.55]
[1749677973454,3.57864858,2794.4,2793.0,11.623]
[1749677973763,3.57884826,2794.2,2793.0,1.623]
[1749677973915,0.43573483,2794.1,2793.1,0.55]
[1749677974113,4.35727465,2794.3,2793.1,0.55]
[1749677974350,0.7785,2794.3,2792.9,0.55]
[1749677974558,0.7785,2794.3,2792.9,10.55]
[1749677974715,3.57884861,2794.2,2792.9,10.55]
[1749677975145,0.8067,2794.7,2792.9,10.91601115]
[1749677975454,0.8067,2794.7,2793.0,0.55]
[1749677975616,3.57855905,2794.5,2793.0,0.55]
[1749677976358,3.57832963,2794.6,2793.0,0.55]
[1749677976566,0.1784,2794.3,2793.8,0.1784]
[1749677976769,3.57892925,2794.2,2793.8,0.1784]
[1749677977075,0.37573293,2794.1,2793.8,0.1784]
[1749677977429,4.38494883,2794.7,2792.8,4.649]
[1749677977684,3.57911927,2794.0,2793.6,0.1784]
[1749677977829,3.75747967,2794.1,2793.6,0.1784]
[1749677978035,3.9548715,2794.0,2793.6,0.1784]
[1749677978230,3.5792511,2793.9,2793.6,0.1784]
[1749677978459,4.3294511,2793.9,2792.7,10.0]
[1749677978643,4.50791124,2793.9,2793.4,0.1784]
[1749677978858,4.50791124,2793.9,2792.6,6.271]
[1749677978859,3.57980945,2793.5,2792.6,1.623]
[1749677979065,3.57980945,2793.5,2793.0,0.1784]
[1749677979066,3.57996786,2793.4,2793.0,0.1784]
[1749677979381,3.57993762,2793.4,2793.0,0.1784]
[1749677979779,0.35798095,2793.5,2793.0,0.1784]
[1749677980546,3.57954539,2793.7,2793.0,0.1784]
[1749677980742,3.57962112,2793.6,2792.1,0.55]
[1749677980943,3.57937095,2793.8,2792.1,0.55]
[1749677981786,3.57946314,2793.8,2792.1,0.55]
[1749677981986,4.01253475,2793.7,2792.2,1.055]
[1749677982196,3.57964107,2793.6,2792.2,1.055]
[1749677982486,0.43296631,2793.7,2792.2,1.055]
[1749677982487,4.01249427,2793.7,2792.2,1.055]
[1749677982704,3.57952796,2793.7,2792.2,1.055]
[1749677982864,3.57968324,2793.6,2792.2,1.055]
[1749677983762,3.57939669,2793.8,2792.2,1.055]
[1749677983763,3.57980906,2793.5,2792.2,1.055]
[1749677983974,0.8146,2793.5,2792.2,1.41588724]
[1749677984173,0.43942727,2793.4,2792.3,0.55]
[1749677984565,0.7,2793.3,2792.3,0.55]
[1749677986160,4.27999632,2793.3,2792.3,0.55]
[1749677986363,4.28002461,2793.3,2792.0,0.55]
[1749677986687,4.05214703,2793.2,2792.0,0.55]
[1749677986870,5.05794519,2793.2,2791.7,1.77926208]
[1749677987071,5.05794519,2793.2,2791.8,0.55]
[1749677987072,3.58038211,2793.0,2791.8,0.55]
[1749677987276,0.84145526,2792.9,2791.8,0.55]
[1749677987486,3.58034187,2793.1,2791.7,2.12818831]
[1749677987711,1.70528568,2793.0,2791.7,2.12818831]
[1749677987878,4.42198889,2792.9,2791.8,0.55]
[1749677988062,3.58053192,2792.9,2791.8,0.55]
[1749677988465,3.5810005,2792.6,2791.7,0.20626208]
[1749677988688,3.58090046,2792.6,2791.8,0.55]
[1749677988878,4.78030261,2792.5,2791.5,0.20682505]
[1749677989095,0.35809005,2792.5,2791.4,1.573]
[1749677989297,0.35809005,2792.5,2791.4,0.20039167]
[1749677989477,1.80690201,2792.8,2790.9,10.18276115]
[1749677989671,3.58134564,2792.3,2790.9,10.18276115]
[1749677989995,0.1784,2792.1,2791.6,0.1784]
[1749677990214,0.7933,2792.0,2791.6,0.1784]
[1749677990410,0.7933,2792.0,2790.7,1.524]
[1749677990580,0.1784,2791.9,2791.4,0.1784]
[1749677990774,3.76021073,2791.9,2791.4,0.1784]
[1749677990974,3.58193874,2791.8,2791.4,0.1784]
[1749677991188,3.76022233,2791.9,2791.4,0.1784]
[1749677991520,3.58211688,2791.7,2791.4,0.1784]
[1749677991721,4.31635068,2791.7,2791.4,0.1784]
[1749677992024,4.31635068,2791.7,2790.2,1.524]
[1749677992025,3.76071141,2791.5,2791.0,0.1784]
[1749677992207,3.58231141,2791.5,2790.2,11.524]
[1749677992522,0.8271,2791.3,2790.9,0.1784]
[1749677992744,0.8271,2791.3,2790.7,0.1784]
[1749677992745,3.58286905,2791.1,2790.7,0.1784]
[1749677992910,4.39996563,2791.1,2790.2,0.20150717]
[1749677993224,4.39996563,2791.1,2790.4,0.1784]
[1749677993225,0.1784,2790.9,2790.4,0.1784]
[1749677994391,3.76151133,2790.9,2790.4,0.1784]
[1749677994595,0.37615113,2790.8,2789.6,11.70676115]
[1749677994803,0.1784,2790.8,2790.3,0.1784]
[1749677995024,0.08881996,2790.8,2790.3,0.1784]
[1749677995632,0.8271,2791.3,2789.7,10.37950033]
[1749677995633,0.7924,2791.3,2789.7,10.37950033]
[1749677995846,0.7924,2791.3,2790.7,0.1784]
[1749677995847,0.1784,2791.2,2790.7,0.1784]
[1749677995992,4.53,2791.4,2790.2,0.55]
[1749677996325,0.1784,2791.8,2791.3,0.1784]
[1749677996501,4.539,2791.6,2791.3,0.1784]
[1749677996702,0.1784,2791.8,2791.3,0.1784]
[1749677997050,4.7164,2791.8,2791.3,0.1784]
[1749677997427,4.71448571,2791.8,2791.3,0.1784]
[1749677997780,4.71448571,2791.8,2790.4,0.55]
[1749677997781,0.8296338,2791.7,2790.4,0.55]
[1749677998507,4.40971842,2791.6,2790.4,0.55]
[1749677998712,3.5824137,2791.5,2789.8,10.0]
[1749677999061,3.58252009,2791.4,2789.9,0.55]
[1749677999393,4.4097155,2791.6,2789.9,0.55]
[1749677999593,4.10628045,2791.5,2790.1,0.55]
[1749677999796,3.58290966,2791.1,2789.8,10.0]
[1749677999990,0.52393493,2791.5,2789.7,0.19673918]
[1749677999991,3.58308913,2790.9,2789.7,0.19673918]
[1749678000300,11.01136115,2790.8,2788.6,10.18276115]
[1749678000805,3.58415689,2790.1,2788.6,14.90625074]
[1749678001004,4.521,2790.2,2788.6,14.90625074]
[1749678001333,0.8286,2790.8,2789.1,10.0]
[1749678001517,0.8286,2790.8,2789.2,10.18276115]
[1749678001719,0.57079089,2790.7,2789.4,0.55]
[1749678002302,0.8286,2790.8,2789.4,0.55]
[1749678002495,4.41181422,2790.8,2789.4,0.55]
[1749678003100,0.8286,2790.8,2789.4,0.55]
[1749678003302,3.58342349,2790.7,2789.4,0.55]
[1749678004336,0.8286,2790.8,2789.4,0.55]
[1749678004532,3.58368288,2790.5,2789.4,0.55]
[1749678004734,3.58368288,2790.5,2789.2,0.55]
[1749678004942,3.58348129,2790.6,2789.1,1.525]
[1749678004943,3.58413627,2790.1,2789.1,1.525]
[1749678005142,4.501,2790.1,2788.6,10.38525074]
[1749678005442,0.8165,2789.9,2788.7,11.03852507]
[1749678005645,0.8165,2789.9,2788.3,0.36049909]
[1749678005796,3.58477798,2789.6,2788.3,0.36049909]
[1749678006001,3.58515371,2789.3,2788.3,0.36049909]
[1749678006320,4.499,2789.3,2787.8,10.18276115]
[1749678006524,4.499,2789.3,2787.9,10.0]
[1749678006838,4.499,2789.3,2787.8,10.38389159]
[1749678007039,4.499,2789.3,2787.9,10.0]
[1749678007543,4.499,2789.3,2788.6,0.1792]
[1749678007544,0.1792,2789.1,2788.6,0.1792]
[1749678007849,3.58560753,2789.0,2787.6,10.0]
[1749678008039,3.58506574,2789.4,2787.6,10.0]
[1749678008040,0.7991,2789.9,2788.5,10.0]
[1749678008213,0.7991,2789.9,2788.6,0.55]
[1749678008536,4.38314753,2790.2,2788.7,0.01558303]
[1749678008839,0.7991,2790.2,2788.7,0.01558303]
[1749678009540,4.493,2790.4,2788.7,0.01558303]
[1749678009839,5.01763,2790.4,2788.7,0.01558303]
[1749678010141,5.01763,2790.4,2789.0,0.55]
[1749678010929,5.01763,2790.4,2789.1,0.01558079]
[1749678011802,3.58393673,2790.3,2789.1,0.01558079]
[1749678012114,0.7,2790.1,2789.1,0.01558079]
[1749678013924,0.7,2790.1,2789.1,1.07213887]
[1749678014537,0.7,2790.1,2789.2,0.55]
[1749678015749,0.7,2790.1,2789.0,0.55]
[1749678016235,0.7,2790.1,2788.9,0.55]
[1749678017547,0.7,2790.1,2788.4,1.477]
[1749678017548,3.58431717,2790.0,2788.4,1.477]
[1749678017714,3.5843448,2790.0,2788.6,0.18349105]
[1749678017914,0.1792,2789.8,2789.3,0.1792]
[1749678018119,5.4164,2789.8,2789.3,0.1792]
[1749678018333,9.00089326,2789.8,2789.3,0.1792]
[1749678018649,6.49572381,2789.8,2788.4,1.477]
[1749678018856,0.1792,2789.3,2788.8,0.1792]
[1749678019417,10.18276115,2788.9,2787.6,0.19900365]
[1749678019755,10.18276115,2788.9,2786.9,0.66666667]
[1749678019756,3.58633743,2788.4,2786.9,0.66666667]
[1749678019925,6.29787611,2788.8,2786.9,0.66666667]
[1749678020126,3.58653912,2788.3,2786.9,0.86468712]
[1749678020440,6.29787611,2788.8,2786.9,0.86468712]
[1749678020441,0.8276,2788.2,2786.9,0.86468712]
[1749678020812,0.8276,2788.2,2786.9,0.66666667]
[1749678021156,3.58692544,2788.0,2786.9,0.66666667]
[1749678021311,8.04694631,2787.9,2786.9,0.66666667]
[1749678021720,4.46,2787.9,2786.9,0.66666667]
[1749678022346,8.04705626,2787.9,2786.9,0.66666667]
[1749678022554,0.80470563,2787.8,2786.9,0.66666667]
[1749678025925,5.2586,2788.2,2787.0,0.55]
[1749678026320,4.431,2788.2,2787.0,10.73276115]
[1749678026848,4.43,2788.5,2787.2,0.55]
[1749678027057,4.426,2788.4,2787.2,0.55]
[1749678027355,4.424,2788.4,2787.2,0.55]
[1749678027558,4.424,2788.4,2787.4,0.55]
[1749678027855,4.421,2788.5,2787.6,0.55]
[1749678028558,1.01827611,2788.8,2787.6,0.55]
[1749678028738,4.418,2788.7,2787.6,0.55]
[1749678029163,4.418,2788.8,2787.6,0.55]
[1749678029680,4.5972,2788.8,2788.3,0.1792]
[1749678029853,0.1792,2788.8,2788.3,0.1792]
[1749678030945,0.1792,2789.0,2788.5,0.1792]
[1749678031176,0.37645986,2788.9,2788.5,0.1792]
[1749678031375,4.403,2789.1,2787.8,10.73276115]
[1749678033463,0.7,2788.9,2788.7,0.1792]
[1749678035073,0.7,2788.9,2787.9,10.0]
[1749678035279,1.2099,2788.9,2787.9,10.0]
[1749678035466,1.2099,2788.9,2788.0,0.55]
[1749678035990,1.9778,2788.9,2787.5,0.55]
[1749678036286,5.56350041,2788.9,2787.4,1.429]
[1749678036491,5.56350234,2788.9,2787.5,0.82372347]
[1749678036692,5.56350234,2788.9,2787.5,1.18389462]
[1749678036864,1.9778,2788.9,2787.5,1.18389462]
[1749678037058,1.9778,2788.9,2787.6,0.55]
[1749678037259,0.19778,2788.8,2787.6,0.55]
[1749678039193,4.37,2788.7,2787.6,0.55]
[1749678040592,1.2778,2788.9,2787.6,0.55]
[1749678040792,4.35,2789.0,2787.6,10.73276115]
[1749678041097,5.1553,2789.2,2787.6,10.73276115]
[1749678041690,4.35,2789.2,2787.6,10.73276115]
[1749678041881,4.346,2789.2,2788.1,0.55]
[1749678042078,4.38829506,2789.6,2788.1,10.55]
[1749678042283,5.27849141,2789.5,2788.3,0.55]
[1749678042607,3.58502403,2789.4,2788.3,0.55]
[1749678042927,4.343,2789.4,2788.3,0.55]
[1749678043263,4.339,2789.4,2788.3,0.55]
[1749678043489,4.339,2789.4,2788.2,0.55]
[1749678043693,4.11263684,2789.3,2788.2,0.55]
[1749678044486,4.11263684,2789.3,2788.0,0.55]
[1749678044487,0.52744914,2789.3,2788.0,0.55]
[1749678045109,0.1792,2788.9,2788.4,0.1792]
[1749678049001,0.1792,2788.7,2788.2,0.1792]
[1749678052032,0.1792,2788.7,2787.0,1.0]
[1749678052033,13.76176452,2788.3,2787.0,1.0]
[1749678052202,3.58739367,2787.6,2787.0,1.0]
[1749678052529,7.89244584,2787.5,2787.0,1.0]
[1749678053233,0.8225,2788.4,2787.3,12.95756452]
[1749678053446,4.40844647,2788.7,2787.4,0.55]
[1749678053621,5.1252,2789.1,2787.7,0.55]
[1749678053823,4.304,2789.0,2787.9,12.95756452]
[1749678054226,0.52744914,2789.3,2788.1,0.1801]
[1749678054541,0.8212,2789.5,2787.2,1.381]
[1749678054542,0.8212,2789.5,2788.2,13.50756452]
[1749678054740,0.8212,2789.5,2788.4,0.55]
[1749678054926,3.58457801,2789.8,2788.4,0.55]
[1749678055241,7.88463011,2789.7,2788.6,0.55]
[1749678055460,3.58488098,2789.5,2788.5,0.1801]
[1749678055744,4.73183392,2789.5,2788.5,0.1801]
[1749678055943,4.73182723,2789.5,2788.5,0.1801]
[1749678056739,3.58456144,2789.8,2788.8,0.55]
[1749678056926,0.7,2789.3,2788.8,0.55]
[1749678057841,4.293,2789.6,2788.8,0.55]
[1749678058205,0.8318,2789.9,2788.8,0.55]
[1749678058407,4.29,2789.8,2788.9,0.1801]
[1749678058842,12.95756452,2790.3,2788.9,0.1801]
[1749678059146,9.52419656,2790.2,2789.1,0.1801]
[1749678059360,3.58410143,2790.1,2789.1,0.1801]
[1749678059649,4.284,2790.0,2789.1,0.1801]
[1749678060054,4.283,2789.9,2789.1,0.1801]
[1749678060424,4.28,2790.0,2789.1,0.1801]
[1749678060959,3.58441689,2789.9,2789.1,0.1801]
[1749678061871,3.58389797,2790.3,2789.1,0.1801]
[1749678062173,4.273,2789.8,2789.5,0.1801]
[1749678062674,0.7,2789.7,2789.5,0.1801]
[1749678065034,4.257,2790.0,2789.6,0.1792]
[1749678065356,0.1784,2790.2,2789.6,0.1792]
[1749678065717,0.1784,2790.2,2789.5,0.1801]
[1749678065916,4.4344,2790.2,2789.8,0.1792]
[1749678066120,4.4334,2790.2,2789.8,0.1792]
[1749678066348,4.255,2790.2,2789.6,0.55]
[1749678066552,4.253,2790.4,2790.1,0.1792]
[1749678066759,0.1784,2790.6,2790.1,0.1792]
[1749678066975,4.4314,2790.6,2790.1,0.1792]
[1749678067264,4.4294,2790.6,2790.2,0.1801]
[1749678067979,4.4294,2790.6,2790.1,0.1792]
[1749678068370,16.54014772,2791.3,2790.1,0.1792]
[1749678068371,0.1784,2790.8,2790.3,0.1784]
[1749678068528,0.1784,2791.1,2790.6,0.3585]
[1749678069443,4.38911995,2791.6,2790.6,0.1801]
[1749678069632,0.1784,2791.3,2790.8,0.1784]
[1749678070174,4.238,2792.7,2791.4,0.1801]
[1749678070357,0.1784,2792.1,2791.6,0.1784]
[1749678071456,0.1784,2792.3,2791.8,0.1784]
[1749678072132,4.4194,2792.3,2791.8,0.1784]
[1749678072335,12.95756452,2792.2,2791.8,0.1784]
[1749678072545,5.2004,2792.3,2791.4,0.1801]
[1749678072735,12.95756452,2791.7,2790.4,0.53101991]
[1749678072932,3.58250338,2791.4,2790.4,0.1801]
[1749678073159,3.58252454,2791.4,2790.4,0.1801]
[1749678073459,3.58302706,2791.0,2790.4,0.1801]
[1749678073666,7.8231393,2790.9,2790.4,0.1801]
[1749678073937,4.236,2790.8,2790.4,0.1801]
[1749678075089,0.35825245,2791.3,2790.4,0.1801]
[1749678075384,3.58304975,2791.0,2789.9,0.1801]
[1749678075588,4.39887473,2791.1,2789.9,0.1801]
[1749678075889,4.229,2791.0,2790.0,10.55]
[1749678076440,0.8195,2793.2,2791.0,0.1801]
[1749678076646,4.292,2793.7,2792.3,0.1801]
[1749678076888,5.1105,2793.6,2792.3,0.1801]
[1749678077068,7.86981611,2793.5,2792.3,0.1801]
[1749678077274,0.7,2793.5,2792.3,0.1801]
[1749678077473,0.7,2793.5,2792.4,10.55]
[1749678078020,0.7,2793.5,2792.6,0.55]
[1749678078494,4.39815141,2794.2,2792.6,0.55]
[1749678078651,4.286,2793.7,2792.6,0.55]
[1749678078847,0.8193,2794.2,2792.5,0.55]
[1749678079085,4.71881029,2794.1,2792.9,0.55]
[1749678079262,4.279,2794.0,2793.1,0.55]
[1749678079450,4.281,2794.3,2793.1,0.55]
[1749678079778,2.1533,2794.6,2793.1,0.55]
[1749678079956,8.42865659,2794.5,2793.1,0.55]
[1749678080145,4.15165659,2794.5,2793.3,0.55]
[1749678080351,0.57315272,2794.5,2793.8,0.55]
[1749678080547,0.8193,2795.4,2793.8,0.90698169]
[1749678080548,4.276,2794.6,2793.8,0.90698169]
[1749678082174,4.276,2794.6,2793.7,0.1801]
[1749678082498,4.4544,2794.6,2794.1,0.1784]
[1749678082787,4.269,2794.7,2793.8,0.55]
[1749678082984,4.269,2794.7,2794.3,0.1784]
[1749678083347,0.1784,2794.8,2794.3,0.1784]
[1749678083546,0.55403609,2794.8,2794.3,0.1784]
[1749678083850,4.262,2794.9,2794.5,0.1784]
[1749678084990,3.57878654,2794.3,2794.1,0.1784]
[1749678085161,3.57897917,2794.1,2793.9,0.1801]
[1749678085363,0.89417432,2794.1,2793.6,0.1784]
[1749678085575,3.579367,2793.8,2793.4,0.1784]
[1749678085774,0.1784,2793.7,2793.2,0.1784]
[1749678085979,3.57962672,2793.6,2793.2,0.1784]
[1749678086176,3.57983981,2793.5,2792.7,0.1801]
[1749678086391,4.255,2793.5,2792.7,0.1801]
[1749678086706,3.58035617,2793.1,2792.7,0.3585]
[1749678087058,3.58026349,2793.1,2792.7,0.3585]
[1749678087264,3.75858404,2793.2,2792.7,0.3585]
[1749678087462,0.91226979,2793.2,2792.7,0.1784]
[1749678087706,3.57986682,2793.4,2792.3,0.1801]
[1749678087867,3.57986682,2793.4,2792.5,0.1784]
[1749678087868,3.58053923,2792.9,2792.5,0.1784]
[1749678088063,3.57986682,2793.4,2792.3,0.1801]
[1749678088064,4.249,2792.8,2792.3,0.1801]
[1749678088284,8.00823949,2792.7,2792.3,0.1801]
[1749678088486,4.249,2792.6,2792.3,0.1801]
[1749678089068,4.249,2792.6,2791.5,1.77090962]
[1749678089069,3.58151866,2792.2,2791.5,1.5121]
[1749678089269,3.58160894,2792.1,2791.5,0.1801]
[1749678089516,3.58129534,2792.3,2791.5,0.1801]
[1749678089517,4.248,2792.0,2791.5,0.1801]
[1749678089864,4.248,2792.0,2791.1,0.52965124]
[1749678090412,3.58216478,2791.7,2791.1,0.1801]
[1749678090619,3.5822937,2791.6,2791.1,0.1801]
[1749678090798,3.58182928,2791.9,2790.2,0.1801]
[1749678091001,4.248,2792.0,2790.2,0.1801]
[1749678091002,3.5826682,2791.3,2790.2,0.1801]
[1749678091184,4.246,2791.2,2790.2,10.1801]
[1749678091388,4.246,2791.5,2790.3,0.1801]
[1749678091709,4.244,2791.6,2790.7,0.55]
[1749678091879,4.247,2791.6,2790.7,0.55]
[1749678094113,3.58236388,2791.5,2790.7,0.55]
[1749678094319,3.58254789,2791.4,2790.6,0.1801]
[1749678094486,4.28250273,2791.4,2790.6,0.1801]